bitfinex/quotes_SOLUSD_20250919
["timestamp","ask_amount","ask_price","bid_price","bid_amount"]
[1758322895048,39.64842754,238.93,238.92,0.2]
[1758322904163,50.11174315,238.93,238.87,0.2]
[1758322904466,1.96679761,238.9,238.87,0.2]
[1758322905073,2.65679761,238.9,238.87,0.2]
[1758322905447,4.335953,238.9,238.87,0.2]
[1758322905873,2.36915539,238.9,238.87,0.2]
[1758322906174,7.83180482,238.9,238.87,0.2]
[1758322906364,8.52180482,238.9,238.87,0.2]
[1758322907658,7.83180482,238.9,238.87,0.2]
[1758322907852,8.52180482,238.9,238.87,0.2]
[1758322908660,7.83180482,238.9,238.87,0.2]
[1758322909058,8.52180482,238.9,238.87,0.2]
[1758322909247,7.83180482,238.9,238.87,0.2]
[1758322910055,8.52180482,238.9,238.87,0.2]
[1758322919264,11.34349298,238.9,238.87,0.2]
[1758322921866,31.2,238.87,238.81,0.1]
[1758322922074,37.95528338,238.87,238.81,0.1]
[1758322922257,7.44528338,238.86,238.81,0.1]
[1758322922459,31.2,238.83,238.81,0.1]
[1758322922761,35.98848577,238.82,238.81,0.1]
[1758322922963,36.67848577,238.82,238.81,0.1]
[1758322923182,33.85679761,238.82,238.81,0.1]
[1758322923390,40.86318789,238.82,238.81,0.1]
[1758322923588,53.46214218,238.82,238.81,0.1]
[1758322924182,50.64300589,238.82,238.81,0.1]
[1758322926188,48.67620828,238.82,238.81,0.1]
[1758322926373,50.64300589,238.82,238.81,0.1]
[1758322932583,53.45450208,238.82,238.81,0.1]
[1758322933090,50.64300589,238.82,238.81,0.1]
[1758322934374,53.45306771,238.82,238.81,0.1]
[1758322934877,50.64300589,238.82,238.81,0.1]
[1758322936593,45.7657519,238.82,238.81,0.1]
[1758322938998,49.95300589,238.82,238.81,0.1]
[1758322941676,0.69,238.87,238.81,0.1]
[1758322941977,1.96679761,238.82,238.81,17.88302334]
[1758322946410,1.25911555,238.82,238.81,17.88302334]
[1758322956417,31.9,238.83,238.81,17.88302334]
[1758322956619,1.25911555,238.82,238.81,17.88302334]
[1758322958111,1.95911555,238.82,238.81,17.88302334]
[1758322958601,1.25911555,238.82,238.81,17.88302334]
[1758322963835,1.25911555,238.86,238.82,13.59559401]
[1758322964017,1.25911555,238.86,238.84,13.59559401]
[1758322964520,31.2,238.85,238.84,13.59559401]
[1758322964726,1.25911555,238.86,238.84,13.59559401]
[1758322965227,1.25911555,238.86,238.85,17.78232208]
[1758322965401,31.9,238.88,238.85,17.78232208]
[1758322965601,1.25911555,238.89,238.86,13.59559401]
[1758322965835,1.25911555,238.89,238.87,31.84]
[1758322966038,1.95911555,238.89,238.87,31.84]
[1758322966698,1.25911555,238.89,238.87,36.02622774]
[1758322966899,1.25911555,238.89,238.88,13.59559401]
[1758322967528,1.25911555,238.9,238.88,13.59559401]
[1758322967737,1.95911555,238.9,238.88,13.59559401]
[1758322968514,35.38499144,238.95,238.88,13.59559401]
[1758322968720,1.25911555,238.9,238.89,17.78162105]
[1758322970619,1.95911555,238.9,238.89,17.78162105]
[1758322972230,1.95911555,238.9,238.89,13.59559401]
[1758322976121,33.15911555,238.9,238.89,13.59559401]
[1758322977952,1.25911555,238.9,238.89,17.78162105]
[1758322982215,1.91911555,238.91,238.89,49.62162105]
[1758322982415,32.45911555,238.92,238.9,13.59559401]
[1758322982618,31.2,238.92,238.91,45.43559401]
[1758322982837,1.25911555,238.93,238.91,45.43559401]
[1758322983229,1.91911555,238.93,238.91,45.43559401]
[1758322984144,1.25911555,238.93,238.91,49.62120363]
[1758322984322,1.91911555,238.93,238.91,49.62120363]
[1758322985340,1.25911555,238.93,238.91,49.62120363]
[1758322985547,2.81226312,238.97,238.92,13.59559401]
[1758322985755,1.25911555,238.96,238.94,13.59559401]
[1758322985915,1.25911555,238.96,238.95,13.59559401]
[1758322986118,1.25911555,238.96,238.95,49.62056994]
[1758322986946,1.91911555,238.96,238.95,49.62056994]
[1758322987523,2.81295563,239.0,238.95,49.62056994]
[1758322987724,1.25911555,238.97,238.95,49.62056994]
[1758322987946,1.91911555,238.97,238.95,49.62056994]
[1758322988826,1.25911555,238.97,238.95,49.62056994]
[1758322989026,1.25911555,238.97,238.96,13.59559401]
[1758322989245,0.66,238.99,238.96,13.59559401]
[1758322989433,1.25911555,238.97,238.95,4.18497593]
[1758322989626,1.25911555,238.97,238.96,45.43559401]
[1758322990042,1.91911555,238.97,238.96,49.62039481]
[1758322991819,2.81295563,239.0,238.96,45.43559401]
[1758322992028,1.25911555,238.98,238.96,45.43559401]
[1758322992229,1.25911555,238.98,238.96,49.62038713]
[1758322992538,0.66,238.97,238.96,49.62038713]
[1758322992739,1.25911555,238.98,238.96,49.62038713]
[1758322992939,1.91911555,238.98,238.96,49.62038713]
[1758322993145,1.25911555,238.98,238.96,49.62038713]
[1758322993344,0.66,238.97,238.96,49.62038713]
[1758322993645,1.25911555,238.98,238.96,49.62038713]
[1758322993848,1.91911555,238.98,238.96,49.62038713]
[1758322994730,0.66,238.98,238.96,49.62038713]
[1758322995136,32.45911555,238.99,238.96,49.62038713]
[1758322995432,0.66,238.97,238.96,49.62038713]
[1758322997446,0.66,238.97,238.96,45.43559401]
[1758322997649,1.91911555,238.97,238.96,45.43559401]
[1758322998340,33.11911555,238.97,238.96,45.43559401]
[1758322999964,1.91911555,238.97,238.96,45.43559401]
[1758323000162,0.66,238.97,238.96,45.43559401]
[1758323004771,0.66,238.97,238.96,49.62039481]
[1758323005863,32.45911555,238.98,238.96,49.62039481]
[1758323006167,0.69,238.97,238.96,49.62039481]
[1758323011765,1.96475868,238.98,238.96,49.62039481]
[1758323012065,2.65475868,238.98,238.96,49.62039481]
[1758323012272,0.69,238.99,238.97,13.59559401]
[1758323012572,2.65475868,238.99,238.98,31.82]
[1758323014178,2.81423113,239.0,238.98,49.60004459]
[1758323015384,3.50423113,239.0,238.98,49.60004459]
[1758323015674,31.2,238.99,238.98,49.60004459]
[1758323016062,0.69,239.0,238.98,49.60004459]
[1758323017155,31.2,238.99,238.98,49.60004459]
[1758323018877,31.89,238.99,238.98,49.60004459]
[1758323021189,31.2,238.99,238.98,49.60004459]
[1758323021695,2.65475868,239.01,238.98,49.60004459]
[1758323021859,31.2,238.99,238.98,49.60004459]
[1758323022180,34.01577928,238.99,238.98,49.60004459]
[1758323022757,1.96475868,239.01,238.98,49.60004459]
[1758323022958,31.2,238.99,238.98,49.60004459]
[1758323023155,34.01620854,238.99,238.98,49.60004459]
[1758323024985,2.65475868,239.01,238.98,49.60004459]
[1758323025188,31.2,238.99,238.98,49.60004459]
[1758323026478,0.69,238.99,238.98,49.60004459]
[1758323027092,2.81701237,239.0,238.98,17.78004459]
[1758323027266,31.2,238.99,238.98,49.60004459]
[1758323028000,0.69,238.99,238.98,49.60004459]
[1758323029476,0.69,238.99,238.98,17.78004459]
[1758323029688,0.69,238.99,238.98,49.60004459]
[1758323030206,3.5077613,238.99,238.98,49.60004459]
[1758323030408,0.69,238.99,238.98,49.60004459]
[1758323030585,3.5077613,238.99,238.98,49.60004459]
[1758323030788,0.69,238.99,238.98,49.60004459]
[1758323031104,3.5077613,238.99,238.98,49.60004459]
[1758323031307,0.69,238.99,238.98,49.60004459]
[1758323031475,3.5077613,238.99,238.98,49.60004459]
[1758323031797,0.69,238.99,238.98,49.60004459]
[1758323032005,3.5077613,238.99,238.98,49.60004459]
[1758323032203,0.69,238.99,238.98,49.60004459]
[1758323032502,3.5077613,238.99,238.98,49.60004459]
[1758323032715,0.69,238.99,238.98,17.78004459]
[1758323033000,3.5077613,238.99,238.98,49.60004459]
[1758323033176,0.69,238.99,238.98,49.60004459]
[1758323033376,3.5077613,238.99,238.98,49.60004459]
[1758323033599,0.69,238.99,238.98,49.60004459]
[1758323033799,3.5077613,238.99,238.98,49.60004459]
[1758323033996,0.69,238.99,238.98,49.60004459]
[1758323034204,3.5077613,238.99,238.98,49.60004459]
[1758323034396,0.69,238.99,238.98,49.60004459]
[1758323034575,3.5077613,238.99,238.98,49.60004459]
[1758323034780,0.69,238.99,238.98,49.60004459]
[1758323034980,3.5077613,238.99,238.98,49.60004459]
[1758323035181,0.69,238.99,238.98,49.60004459]
[1758323035389,3.5077613,238.99,238.98,49.60004459]
[1758323035704,0.69,238.99,238.98,17.78004459]
[1758323035886,3.5077613,238.99,238.98,49.60004459]
[1758323036086,0.69,238.99,238.98,49.60004459]
[1758323036286,3.5077613,238.99,238.98,49.60004459]
[1758323036505,0.69,238.99,238.98,49.60004459]
[1758323036804,3.5077613,238.99,238.98,49.60004459]
[1758323037105,0.69,238.99,238.98,49.60004459]
[1758323037304,34.7077613,238.99,238.98,49.60004459]
[1758323037810,34.7077613,238.99,238.98,17.78004459]
[1758323037985,34.7077613,238.99,238.98,49.60004459]
[1758323038385,34.7077613,238.99,238.98,17.78004459]
[1758323038593,34.7077613,238.99,238.98,49.60004459]
[1758323039281,34.7077613,238.99,238.98,17.78004459]
[1758323039489,0.71,239.01,238.99,13.59559401]
[1758323039693,0.71,239.01,239.0,45.41559401]
[1758323039896,3.52865303,239.01,239.0,13.59559401]
[1758323040101,3.52865303,239.01,239.0,45.41559401]
[1758323041417,3.52865303,239.01,239.0,49.59969442]
[1758323042599,2.81865303,239.01,239.0,49.59969442]
[1758323043000,4.78341171,239.02,239.0,49.59969442]
[1758323043186,5.49341171,239.02,239.0,17.77969442]
[1758323043393,2.67475868,239.02,239.01,31.82]
[1758323043694,2.81865303,239.03,239.01,45.41559401]
[1758323043901,2.81865303,239.03,239.02,13.59559401]
[1758323044406,3.52865303,239.03,239.02,13.59559401]
[1758323044794,3.52865303,239.03,239.02,31.82]
[1758323044997,3.52865303,239.03,238.99,13.59559401]
[1758323045195,0.71,239.02,239.0,31.82]
[1758323045418,0.71,239.01,239.0,45.41559401]
[1758323045906,0.71,239.01,239.0,13.59559401]
[1758323046410,2.67475868,239.01,239.0,45.41559401]
[1758323047696,2.67475868,239.01,239.0,13.59559401]
[1758323047896,2.67475868,239.01,239.0,45.41559401]
[1758323048098,31.2,239.0,238.98,80.8]
[1758323048306,33.87475868,238.99,238.98,94.39559401]
[1758323048506,33.87475868,238.99,238.98,126.21559401]
[1758323048923,0.71,238.99,238.98,94.39559401]
[1758323049101,2.67475868,238.99,238.98,49.60004459]
[1758323049502,2.67475868,238.99,238.98,17.78004459]
[1758323049714,2.67475868,238.99,238.98,49.60004459]
[1758323051805,33.87475868,238.99,238.98,49.60004459]
[1758323052322,5.49534052,238.99,238.98,49.60004459]
[1758323052522,5.49534052,238.99,238.98,17.78004459]
[1758323052712,5.49534052,238.99,238.98,49.60004459]
[1758323053122,2.67475868,238.99,238.98,49.60004459]
[1758323053310,5.49534052,238.99,238.98,49.60004459]
[1758323053719,5.49534052,238.99,238.98,17.78004459]
[1758323054023,2.67475868,238.99,238.98,17.78004459]
[1758323054225,5.49534052,238.99,238.98,49.60004459]
[1758323054612,2.67475868,238.99,238.98,17.78004459]
[1758323054806,5.49534052,238.99,238.98,49.60004459]
[1758323055626,2.67475868,238.99,238.98,49.60004459]
[1758323055837,5.49534052,238.99,238.98,17.78004459]
[1758323056017,5.49534052,238.99,238.98,49.60004459]
[1758323056215,2.67475868,238.99,238.98,49.60004459]
[1758323056521,5.49534052,238.99,238.98,49.60004459]
[1758323056703,5.49534052,238.99,238.98,17.78004459]
[1758323056909,2.67475868,238.99,238.98,49.60004459]
[1758323057110,5.49534052,238.99,238.98,49.60004459]
[1758323057317,5.49534052,238.99,238.98,17.78004459]
[1758323057531,2.67475868,238.99,238.98,49.60004459]
[1758323057830,3.53058184,238.99,238.98,49.60004459]
[1758323058018,5.49534052,238.99,238.98,49.60004459]
[1758323058218,2.67475868,238.99,238.98,17.78004459]
[1758323058421,5.49534052,238.99,238.98,49.60004459]
[1758323058834,2.67475868,238.99,238.98,17.78004459]
[1758323059132,5.49534052,238.99,238.98,49.60004459]
[1758323059828,3.53058184,238.99,238.98,49.60004459]
[1758323060035,5.49534052,238.99,238.98,49.60004459]
[1758323060211,2.67475868,238.99,238.98,49.60004459]
[1758323060412,5.49534052,238.99,238.98,49.60004459]
[1758323061024,2.67475868,238.99,238.98,49.60004459]
[1758323061331,5.49534052,238.99,238.98,49.60004459]
[1758323061527,2.67475868,238.99,238.98,17.78004459]
[1758323061735,5.49534052,238.99,238.98,49.60004459]
[1758323063532,5.49534052,238.99,238.98,13.59559401]
[1758323063736,31.2,238.96,238.93,13.59559401]
[1758323063931,1.96475868,238.94,238.89,4.18602704]
[1758323064235,2.67475868,238.98,238.9,47.42035269]
[1758323064416,33.87475868,238.98,238.9,47.42035269]
[1758323064617,33.87475868,238.98,238.92,13.59559401]
[1758323064833,33.87475868,238.98,238.94,13.59559401]
[1758323065133,33.87475868,238.98,238.96,13.59559401]
[1758323065337,0.71,238.97,238.96,13.59559401]
[1758323065538,0.71,238.97,238.96,45.45559401]
[1758323066947,2.67475868,238.97,238.96,45.45559401]
[1758323067823,1.9674685,238.97,238.96,45.45559401]
[1758323069341,1.9674685,238.97,238.96,13.59559401]
[1758323069519,1.9674685,238.97,238.96,45.45559401]
[1758323070847,1.9674685,238.97,238.96,13.59559401]
[1758323071138,1.9674685,238.97,238.96,45.45559401]
[1758323085549,33.1474685,239.0,238.96,49.64039481]
[1758323085860,1.9474685,239.02,238.96,49.64039481]
[1758323086051,2.82130509,239.01,238.96,49.64039481]
[1758323086441,0.69,239.0,238.96,17.78039481]
[1758323086641,0.69,239.0,238.99,17.7798695]
[1758323086840,0.69,239.0,238.99,49.6198695]
[1758323088349,1.9474685,239.0,238.99,49.6198695]
[1758323089155,1.9474685,239.0,238.99,17.7798695]
[1758323089351,1.9474685,239.0,238.99,49.6198695]
[1758323090657,1.9474685,239.0,238.99,17.7798695]
[1758323090843,1.9474685,239.0,238.99,49.6198695]
[1758323091255,1.9474685,239.0,238.99,17.7798695]
[1758323091458,1.9474685,239.0,238.99,49.6198695]
[1758323093563,0.69,239.0,238.99,49.6198695]
[1758323094242,0.69,239.0,238.99,45.43559401]
[1758323095050,31.89,239.0,238.99,45.43559401]
[1758323096459,3.51113995,239.0,238.94,13.59559401]
[1758323096660,1.2574685,238.96,238.95,13.59559401]
[1758323096864,1.9474685,238.96,238.95,45.43559401]
[1758323097253,1.9474685,238.96,238.95,13.59559401]
[1758323097570,1.9474685,238.96,238.95,45.43559401]
[1758323098956,0.69,238.96,238.95,45.43559401]
[1758323099351,0.69,238.96,238.95,13.59559401]
[1758323099550,1.9474685,238.96,238.95,45.43559401]
[1758323100552,1.9474685,238.96,238.95,13.59559401]
[1758323100756,1.9474685,238.96,238.95,45.43559401]
[1758323101755,1.9474685,238.96,238.95,13.59559401]
[1758323101955,0.69,238.96,238.95,45.43559401]
[1758323102669,0.69,238.96,238.95,13.59559401]
[1758323102846,0.69,238.96,238.95,45.43559401]
[1758323103562,0.69,238.96,238.95,13.59559401]
[1758323103763,0.69,238.96,238.95,45.43559401]
[1758323104158,0.69,238.96,238.95,13.59559401]
[1758323104670,0.69,238.96,238.95,45.43559401]
[1758323105364,0.69,238.96,238.95,13.59559401]
[1758323105672,0.69,238.96,238.95,45.43559401]
[1758323106083,31.89,238.96,238.91,2.18719607]
[1758323106288,31.89,238.96,238.88,2.82113995]
[1758323106289,1.2574685,238.92,238.88,13.59559401]
[1758323106450,1.2574685,238.9,238.89,45.43559401]
[1758323106655,1.9674685,238.9,238.89,45.43559401]
[1758323108679,1.9674685,238.9,238.89,13.59559401]
[1758323108865,1.9674685,238.9,238.89,45.43559401]
[1758323109884,1.9674685,238.9,238.89,13.59559401]
[1758323110066,1.9674685,238.9,238.89,45.43559401]
[1758323111091,1.9674685,238.9,238.86,13.59559401]
[1758323111385,32.4574685,238.88,238.87,45.43559401]
[1758323111688,33.1674685,238.88,238.87,45.43559401]
[1758323113482,33.1674685,238.88,238.87,13.59559401]
[1758323113788,33.1674685,238.88,238.87,45.45559401]
[1758323115658,1.9674685,238.88,238.87,45.45559401]
[1758323115872,1.9674685,238.88,238.84,13.59559401]
[1758323116185,0.71,238.87,238.86,13.59559401]
[1758323117275,1.9674685,238.87,238.86,13.59559401]
[1758323118788,1.9674685,238.87,238.85,31.86]
[1758323119003,1.9674685,238.86,238.85,45.45559401]
[1758323119182,0.71,238.86,238.85,45.45559401]
[1758323119603,1.9674685,238.86,238.85,45.45559401]
[1758323123881,1.9674685,238.86,238.85,31.86]
[1758323124879,0.71,238.86,238.85,31.86]
[1758323125081,1.9674685,238.86,238.85,31.86]
[1758323127802,2.67673403,238.86,238.85,31.86]
[1758323130301,6.8633001,238.86,238.85,31.86]
[1758323130987,31.2,238.83,238.81,0.1]
[1758323131186,1.96673403,238.82,238.81,0.1]
[1758323131496,1.96673403,238.82,238.81,45.55559401]
[1758323132590,2.67673403,238.82,238.81,45.55559401]
[1758323134510,1.96673403,238.82,238.81,45.55559401]
[1758323134722,1.96673403,238.83,238.82,13.59559401]
[1758323134926,31.2,238.85,238.82,13.59559401]
[1758323135222,31.2,238.85,238.84,13.59559401]
[1758323135423,1.96673403,238.86,238.84,13.59559401]
[1758323135714,1.96673403,238.86,238.85,31.88]
[1758323136095,2.67673403,238.86,238.85,31.88]
[1758323136494,0.71,238.9,238.86,13.59559401]
[1758323136706,0.71,238.89,238.87,45.47559401]
[1758323136915,2.67673403,238.89,238.87,45.47559401]
[1758323137119,1.96673403,238.98,238.88,13.59559401]
[1758323137120,1.96673403,238.91,238.88,13.59559401]
[1758323137298,2.67673403,238.91,238.89,31.88]
[1758323137712,1.96673403,238.9,238.89,31.88]
[1758323137907,33.87673403,238.9,238.89,31.88]
[1758323139624,2.67673403,238.91,238.89,31.88]
[1758323140224,1.96673403,238.92,238.89,36.06589725]
[1758323140604,2.67673403,238.92,238.89,36.06589725]
[1758323141017,33.87673403,238.92,238.89,36.06589725]
[1758323142003,0.71,238.91,238.89,36.06589725]
[1758323142947,33.16673403,238.92,238.9,13.59559401]
[1758323143149,31.2,238.94,238.92,13.59559401]
[1758323143317,33.16673403,238.94,238.93,31.9]
[1758323143647,33.87673403,238.94,238.93,31.9]
[1758323149940,2.67673403,238.94,238.93,31.9]
[1758323150721,31.2,238.93,238.88,13.59559401]
[1758323150923,31.91,238.92,238.9,13.59559401]
[1758323151115,2.67673403,238.91,238.9,13.59559401]
[1758323151316,2.67673403,238.91,238.9,45.49559401]
[1758323155424,33.87673403,238.91,238.9,45.49559401]
[1758323161631,31.91,238.91,238.9,45.49559401]
[1758323161837,33.87673403,238.91,238.9,45.49559401]
[1758323162228,31.91,238.91,238.9,45.49559401]
[1758323162428,33.87673403,238.91,238.9,45.49559401]
[1758323162657,33.16673403,238.91,238.9,13.59559401]
[1758323162950,33.16673403,238.91,238.9,45.47559401]
[1758323163163,33.87673403,238.91,238.9,45.47559401]
[1758323168367,33.87673403,238.91,238.87,13.59559401]
[1758323168568,31.91,238.91,238.9,13.59559401]
[1758323168761,31.91,238.91,238.9,45.47559401]
[1758323169668,33.87673403,238.91,238.9,45.47559401]
[1758323174372,33.87673403,238.91,238.9,13.59559401]
[1758323174675,33.87673403,238.91,238.9,45.47559401]
[1758323174969,33.87673403,238.91,238.9,13.59559401]
[1758323175271,33.87673403,238.91,238.9,45.47559401]
[1758323175980,33.87604296,238.91,238.9,45.47559401]
[1758323176172,33.87604296,238.91,238.9,13.59559401]
[1758323176473,33.87604296,238.91,238.9,45.47559401]
[1758323177052,33.87604296,238.91,238.9,13.59559401]
[1758323177254,33.87604296,238.91,238.9,45.47559401]
[1758323178977,33.87604296,238.91,238.9,45.45559401]
[1758323180065,33.87604296,238.91,238.9,13.59559401]
[1758323180859,33.87604296,238.91,238.9,45.45559401]
[1758323182575,31.2,238.88,238.85,13.59559401]
[1758323182783,1.96604296,238.86,238.85,13.59559401]
[1758323183259,2.67604296,238.86,238.85,45.45559401]
[1758323183862,33.87604296,238.86,238.85,45.45559401]
[1758323186755,2.67604296,238.86,238.85,45.45559401]
[1758323186960,2.67604296,238.86,238.85,13.59559401]
[1758323187283,2.67604296,238.86,238.85,31.88]
[1758323187476,6.86259575,238.86,238.85,31.88]
[1758323187870,31.2,238.83,238.81,13.69559401]
[1758323188178,1.96604296,238.82,238.81,13.69559401]
[1758323188483,1.96604296,238.82,238.81,45.57559401]
[1758323189765,1.25913138,238.82,238.81,45.57559401]
[1758323192662,1.25913138,238.82,238.81,13.69559401]
[1758323192858,1.95913138,238.82,238.81,45.57559401]
[1758323193270,1.95913138,238.82,238.81,13.69559401]
[1758323193484,1.25913138,238.82,238.81,45.57559401]
[1758323194464,1.25913138,238.82,238.81,13.69559401]
[1758323194664,1.25913138,238.82,238.81,45.57559401]
[1758323195178,0.7,238.83,238.81,45.57559401]
[1758323195385,1.25913138,238.82,238.81,45.57559401]
[1758323196171,0.7,238.83,238.81,45.57559401]
[1758323196371,1.25913138,238.82,238.81,45.57559401]
[1758323196885,0.7,238.83,238.81,45.57559401]
[1758323197088,1.25913138,238.84,238.81,49.76301124]
[1758323198090,1.25913138,238.83,238.81,49.76301124]
[1758323203882,0.7,238.87,238.82,13.59559401]
[1758323204078,1.95913138,238.87,238.84,13.59559401]
[1758323204282,1.95913138,238.87,238.86,13.59559401]
[1758323206206,0.7,238.87,238.86,13.59559401]
[1758323206379,1.95913138,238.87,238.86,13.59559401]
[1758323220019,1.25913138,238.87,238.86,13.59559401]
[1758323229798,1.91913138,238.87,238.86,13.59559401]
[1758323239835,33.11913138,238.87,238.86,13.59559401]
[1758323241042,1.91913138,238.87,238.86,45.45559401]
[1758323241237,1.91913138,238.87,238.86,13.59559401]
[1758323241440,1.91913138,238.87,238.86,45.45559401]
[1758323242426,1.91913138,238.87,238.86,13.59559401]
[1758323242646,1.91913138,238.87,238.86,45.45559401]
[1758323244832,1.91913138,238.87,238.86,13.59559401]
[1758323245027,1.91913138,238.87,238.86,45.45559401]
[1758323246044,1.91913138,238.87,238.86,13.59559401]
[1758323246242,6.1055089,238.87,238.86,45.45559401]
[1758323246540,31.2,238.84,238.81,0.1]
[1758323246839,1.25913138,238.82,238.81,0.1]
[1758323247024,1.25913138,238.82,238.81,31.96]
[1758323247344,1.97913138,238.82,238.81,44.55207959]
[1758323247541,1.97913138,238.82,238.81,31.96]
[1758323248440,1.97913138,238.82,238.81,0.1]
[1758323248631,1.97913138,238.82,238.81,31.96]
[1758323249034,1.97913138,238.82,238.81,0.1]
[1758323249347,1.97913138,238.82,238.81,31.96]
[1758323250234,1.97913138,238.82,238.81,0.1]
[1758323250435,1.97913138,238.82,238.81,31.96]
[1758323251729,2.68723631,238.82,238.81,31.96]
[1758323252341,2.68723631,238.82,238.81,0.1]
[1758323252542,2.68723631,238.82,238.81,31.96]
[1758323254151,2.68723631,238.82,238.81,0.1]
[1758323254350,2.68723631,238.82,238.81,31.96]
[1758323258039,6.8744903,238.82,238.81,31.96]
[1758323264942,6.8744903,238.82,238.81,0.1]
[1758323265148,6.8744903,238.82,238.81,31.96]
[1758323266739,4.90725399,238.82,238.81,31.96]
[1758323267141,6.8744903,238.82,238.81,31.96]
[1758323267648,6.8744903,238.82,238.81,0.1]
[1758323267851,6.8744903,238.82,238.81,31.96]
[1758323268553,6.8744903,238.82,238.81,0.1]
[1758323268739,6.8744903,238.82,238.81,31.96]
[1758323270356,6.8744903,238.82,238.81,0.1]
[1758323270558,6.8744903,238.82,238.81,31.96]
[1758323272149,6.8744903,238.82,238.81,0.1]
[1758323272344,6.8744903,238.82,238.81,31.96]
[1758323275062,38.0744903,238.82,238.81,31.96]
[1758323277869,38.0744903,238.82,238.81,0.1]
[1758323278051,38.0744903,238.82,238.81,31.96]
[1758323279672,38.0744903,238.82,238.81,0.1]
[1758323279854,38.0744903,238.82,238.81,31.96]
[1758323280055,38.0744903,238.82,238.81,0.1]
[1758323280264,38.0744903,238.82,238.81,31.96]
[1758323280461,33.88723631,238.82,238.81,31.96]
[1758323280863,33.88723631,238.82,238.81,0.1]
[1758323281057,33.88723631,238.82,238.81,31.96]
[1758323282478,38.0744903,238.82,238.81,31.96]
[1758323286002,38.0744903,238.82,238.81,0.1]
[1758323286189,40.89256222,238.82,238.81,0.1]
[1758323286392,40.89256222,238.82,238.81,31.96]
[1758323287688,40.89256222,238.82,238.81,0.1]
[1758323287882,40.89256222,238.82,238.81,31.96]
[1758323288813,40.89256222,238.82,238.81,1e-08]
[1758323288994,51.36069721,238.82,238.78,0.2]
[1758323289300,33.16723631,238.79,238.78,0.2]
[1758323289618,35.98530823,238.79,238.78,0.2]
[1758323289782,36.67530823,238.79,238.78,0.2]
[1758323290104,53.46204257,238.79,238.78,0.2]
[1758323293008,49.27426252,238.79,238.78,0.2]
[1758323293191,46.4561906,238.79,238.78,0.2]
[1758323293393,38.04501636,238.79,238.78,0.2]
[1758323293599,50.64291251,238.79,238.78,0.2]
[1758323294496,38.04501636,238.79,238.78,0.2]
[1758323294686,50.64291251,238.79,238.78,0.2]
[1758323300115,48.6756762,238.79,238.78,0.2]
[1758323300416,38.04501636,238.79,238.78,0.2]
[1758323304701,40.85966877,238.79,238.78,0.2]
[1758323304890,53.4591522,238.79,238.78,0.2]
[1758323309721,63.92860234,238.79,238.72,13.59559401]
[1758323310014,1.96723631,238.74,238.72,13.59559401]
[1758323310321,6.85604988,238.74,238.72,13.59559401]
[1758323310513,6.15604988,238.74,238.72,13.59559401]
[1758323310709,31.2,238.72,238.71,13.69559401]
[1758323310914,33.16723631,238.72,238.71,13.69559401]
[1758323311818,32.46017926,238.72,238.71,13.69559401]
[1758323316922,1.26017926,238.72,238.71,13.69559401]
[1758323317427,32.46017926,238.73,238.71,13.69559401]
[1758323318114,1.26017926,238.74,238.71,13.69559401]
[1758323320112,31.2,238.75,238.71,13.69559401]
[1758323320313,31.2,238.76,238.71,13.69559401]
[1758323320521,31.2,238.76,238.71,17.88474897]
[1758323320719,0.7,238.8,238.71,98.68474897]
[1758323321012,1.26017926,238.77,238.71,98.68474897]
[1758323323654,31.9,238.79,238.71,98.68474897]
[1758323323821,1.26017926,238.77,238.71,98.68474897]
[1758323324237,32.46017926,238.77,238.71,98.68474897]
[1758323324831,1.26017926,238.77,238.71,98.68474897]
[1758323327543,1.26017926,238.77,238.71,111.28158716]
[1758323328042,1.26017926,238.76,238.71,98.68474897]
[1758323329644,1.26017926,238.76,238.73,13.59559401]
[1758323329851,1.26017926,238.76,238.75,13.59559401]
[1758323330336,1.96017926,238.77,238.75,13.59559401]
[1758323330539,1.96017926,238.77,238.76,45.47559401]
[1758323330858,1.26017926,238.77,238.76,45.47559401]
[1758323331350,1.96017926,238.77,238.76,45.47559401]
[1758323336946,6.14831009,238.77,238.76,45.45559401]
[1758323337654,37.34831009,238.77,238.76,45.45559401]
[1758323337834,6.14831009,238.77,238.76,45.45559401]
[1758323340038,6.14831009,238.77,238.76,31.86]
[1758323342068,37.34831009,238.77,238.76,31.86]
[1758323342441,6.14831009,238.77,238.76,31.86]
[1758323354959,37.34831009,238.77,238.76,31.86]